fUST/lending_fUST_20250821
["ID","MTS","AMOUNT","RATE_DAILY","PERIOD"]
[380372616,1755711040436,-1000.0,0.00024421,2]
[380372618,1755711040445,-696.5037321,0.00024421,2]
[380372620,1755711040455,-597.05718573,0.00024421,2]
[380372622,1755711040464,-500.0,0.00024421,2]
[380372624,1755711040473,-500.0,0.00024421,2]
[380372625,1755711040483,-1000.0,0.00024421,2]
[380372627,1755711040493,-271.0,0.00024437,2]
[380372629,1755711040502,-500.0,0.0002444,2]
[380372631,1755711040511,-260.0,0.00024474,2]
[380372633,1755711040520,-973.0,0.00024476,2]
[380372634,1755711040529,-271.0,0.00024478,2]
[380372636,1755711040539,-2534.09896944,0.0002455,2]
[380372638,1755711040547,-151.0,0.000246,9]
[380372640,1755711040556,-5492.29492984,0.00024602,7]
[380372641,1755711040565,-187.0,0.00024687,2]
[380372643,1755711040574,-187.0,0.00024688,2]
[380372645,1755711040583,-168.0,0.00024701,2]
[380372647,1755711040592,-500.0,0.00024714,2]
[380372648,1755711040602,-1000.0,0.00024773,2]
[380372650,1755711040611,-150.0,0.00024773,2]
[380372652,1755711040620,-2081.87378226,0.00024774,2]
[380372654,1755711040629,-215.82729805,0.00024787,2]
[380372656,1755711040638,-160.0,0.00024792,2]
[380372657,1755711040647,-168.0,0.00024795,2]
[380372659,1755711040656,-88001.0604724,0.000248,2]
[380372661,1755711040665,-2534.09896944,0.000248,2]
[380372663,1755711040674,-150.81405309,0.00024873,2]
[380372664,1755711040684,-500.0,0.00024873,2]
[380372666,1755711040693,-187.0,0.00024891,2]
[380372668,1755711040702,-151.0,0.000249,7]
[380372670,1755711040711,-151.0,0.000249,7]
[380372672,1755711040721,-151.0,0.000249,7]
[380372673,1755711040731,-153.130788,0.000249,7]
[380372675,1755711040742,-151.0,0.000249,7]
[380372677,1755711040751,-154.843875,0.000249,7]
[380372679,1755711040761,-182.77662,0.000249,7]
[380372680,1755711040770,-151.0,0.000249,7]
[380372682,1755711040779,-151.0,0.000249,7]
[380372684,1755711040788,-152.315725,0.000249,7]
[380372686,1755711040797,-151.0,0.000249,7]
[380372687,1755711040806,-151.0,0.000249,7]
[380372689,1755711040815,-151.0,0.000249,7]
[380372691,1755711040824,-151.0,0.000249,7]
[380372693,1755711040833,-151.0,0.000249,7]
[380372694,1755711040842,-151.0,0.000249,7]
[380372696,1755711040852,-177.960366,0.000249,7]
[380372698,1755711040861,-151.0,0.000249,7]
[380372700,1755711040870,-151.0,0.000249,7]
[380372701,1755711040879,-160.803441,0.000249,7]
[380372702,1755711040888,-151.0,0.000249,7]
[380372703,1755711040897,-151.0,0.000249,7]
[380372704,1755711040906,-200.43177,0.000249,7]
[380372705,1755711040915,-151.0,0.000249,7]
[380372706,1755711040925,-151.0,0.000249,7]
[380372707,1755711040934,-151.0,0.000249,7]
[380372708,1755711040944,-151.0,0.000249,7]
[380372709,1755711040954,-201.882496,0.000249,7]
[380372710,1755711040963,-151.0,0.000249,7]
[380372711,1755711040972,-151.0,0.000249,7]
[380372712,1755711040982,-151.0,0.000249,7]
[380372713,1755711040991,-151.0,0.000249,7]
[380372714,1755711040999,-151.0,0.000249,7]
[380372715,1755711041008,-151.0,0.000249,7]
[380372716,1755711041018,-151.0,0.000249,7]
[380372717,1755711041027,-151.0,0.000249,7]
[380372718,1755711041037,-337.229303,0.000249,7]
[380372719,1755711041049,-337.229303,0.000249,7]
[380372720,1755711041059,-151.0,0.000249,7]
[380372721,1755711041067,-337.229303,0.000249,7]
[380372722,1755711041077,-152.62283,0.000249,7]
[380372723,1755711041086,-337.229303,0.000249,7]
[380372725,1755711041096,-710640.797942,0.000249,2]
[380372727,1755711041105,-151.0,0.000249,7]
[380372728,1755711041116,-151.0,0.000249,7]
[380372731,1755711041135,-151.0,0.000249,7]
[380372732,1755711041150,-151.0,0.000249,7]
[380372734,1755711041159,-151.0,0.000249,7]
[380372736,1755711041168,-21981.85,0.000249,2]
[380372738,1755711041177,-151.0,0.000249,7]
[380372740,1755711041186,-151.0,0.000249,7]
[380372741,1755711041195,-151.0,0.000249,7]
[380372743,1755711041205,-151.0,0.000249,7]
[380372744,1755711041215,-151.0,0.000249,7]
[380372746,1755711041224,-151.0,0.000249,7]
[380372748,1755711041234,-298.508821,0.000249,7]
[380372750,1755711041243,-151.0,0.000249,7]
[380372751,1755711041252,-1500.0,0.00024968,2]
[380372753,1755711041262,-1161.81003357,0.00024969,2]
[380372755,1755711041272,-151.0,0.00024987,2]
[380372757,1755711041281,-2384.89026962,0.00024987,2]
[380372759,1755711041290,-500.0,0.00024988,2]
[380372761,1755711041302,-360.0,0.00025022,2]
[380372762,1755711041311,-187.0,0.0002506,2]
[380372764,1755711041322,-168.0,0.00025083,2]
[380372766,1755711041331,-306.0,0.00025178,2]
[380372768,1755711041341,-10199.69,0.000252,7]
[380372769,1755711041351,-5417.28,0.000252,7]
[380372771,1755711041361,-1147.83,0.000252,7]
[380372773,1755711041371,-4146.79194132,0.00025219,2]
[380372775,1755711041381,-1019.39024622,0.00025321,2]
[380372777,1755711041391,-250.0,0.00025321,2]
[380372778,1755711041401,-2200.0,0.00025395,2]
[380372780,1755711041410,-817.648,0.00025395,2]
[380372782,1755711041419,-187.0,0.0002544,2]
[380372784,1755711041429,-2000.0,0.00025516,2]
[380372786,1755711041438,-460.0,0.0002557,2]
[380372787,1755711041447,-200.0,0.0002564,13]
[380372789,1755711041456,-500.0,0.00025664,2]
[380372791,1755711041465,-500.0,0.00025664,2]
[380372793,1755711041474,-500.43512046,0.00025664,2]
[380372794,1755711041483,-500.67768814,0.00025664,2]
[380372796,1755711041494,-1161.81003357,0.00025693,2]
[380372798,1755711041503,-151.0,0.00025803,2]
[380372800,1755711041512,-198.0,0.00025803,2]
[380372802,1755711041521,-500.0,0.00025803,2]
[380372804,1755711041531,-500.0,0.00025803,2]
[380372805,1755711041540,-997.01428423,0.00025863,2]
[380372807,1755711041550,-3100.34836702,0.000259,2]
[380372809,1755711041559,-773.5991864,0.00025914,2]
[380372811,1755711041569,-180.67183153,0.00025915,2]
[380372813,1755711041579,-2407.4495499,0.00025916,2]
[380372814,1755711041588,-876.632237,0.00025929,2]
[380372816,1755711041597,-431.9034523,0.00025929,2]
[380372818,1755711041606,-997.01428423,0.00025963,2]
[380372820,1755711041616,-8092.31310787,0.00026,2]
[380372822,1755711041625,-100294.01366485,0.00026,15]
[380372824,1755711041634,-200.0,0.00026,2]
[380372825,1755711041642,-430.65,0.00026,5]
[380372827,1755711041651,-204886.35471414,0.00026,15]
[380372829,1755711041661,-1847.17576609,0.00026,7]
[380372831,1755711041670,-2000.0,0.00026,2]
[380372832,1755711041679,-154.58960332,0.00026,3]
[380372834,1755711041688,-169.586895,0.00026,7]
[380372836,1755711041697,-151.0,0.00026,7]
[380372838,1755711041707,-151.0,0.00026,7]
[380372840,1755711041716,-256.892,0.00026,7]
[380372842,1755711041725,-151.0,0.00026,7]
[380372843,1755711041734,-1038.98,0.00026,30]
[380372845,1755711041743,-151.0,0.00026,7]
[380372847,1755711041752,-151.0,0.00026,7]
[380372848,1755711041761,-151.0,0.00026,7]
[380372850,1755711041770,-151.0,0.00026,7]
[380372852,1755711041779,-151.0,0.00026,7]
[380372854,1755711041788,-151.0,0.00026,7]
[380372856,1755711041796,-151.0,0.00026,7]
[380372857,1755711041806,-1558.215259,0.00026,2]
[380372859,1755711041815,-151.0,0.00026,7]
[380372861,1755711041824,-232.24568399,0.00026,3]
[380372863,1755711041834,-375.94359665,0.00026,3]
[380372865,1755711041843,-151.0,0.00026,7]
[380372867,1755711041853,-151.0,0.00026,7]
[380372868,1755711041861,-151.0,0.00026,7]
[380372870,1755711041871,-151.0,0.00026,7]
[380372872,1755711041880,-160.0,0.00026,3]
[380372874,1755711041888,-151.0,0.00026,7]
[380372876,1755711041897,-151.0,0.00026,7]
[380372877,1755711041906,-151.0,0.00026,7]
[380372879,1755711041915,-151.0,0.00026,7]
[380372881,1755711041924,-337.229303,0.00026,7]
[380372883,1755711041933,-337.229303,0.00026,7]
[380372885,1755711041942,-151.0,0.00026,7]
[380372887,1755711041951,-337.229303,0.00026,7]
[380372888,1755711041960,-337.229303,0.00026,7]
[380372890,1755711041969,-1807.49331209,0.00026,30]
[380372892,1755711041978,-151.0,0.00026,7]
[380372894,1755711041987,-151.0,0.00026,7]
[380372896,1755711041996,-151.0,0.00026,7]
[380372897,1755711042005,-479229.06217169,0.00026,15]
[380373151,1755711937144,-452.60151327,0.000199,2]
[380373152,1755711937164,-196.79472,0.00020863,2]
[380373153,1755711937184,-182.247167,0.00021053,2]
[380373154,1755711937205,-257.50965908,0.00021771,2]
[380373237,1755712000096,-195.0918541,0.00021771,2]
[380373239,1755712000117,-8.98412863,0.00021896,2]
[380373268,1755712151126,-422.4280792,0.000199,2]
[380373269,1755712151148,-966.34076345,0.00020735,2]
[380373270,1755712151170,-422.42807896,0.00020835,2]
[380373271,1755712151191,-422.42807896,0.00021771,2]
[380373272,1755712151212,-44.14596273,0.00021996,2]
[380373273,1755712159109,-253.251467,0.00021339,2]
[380373274,1755712159130,-292.42311821,0.0002134,2]
[380373275,1755712159150,-1175.53124282,0.00021996,2]
[380373276,1755712159171,-300.0,0.00021998,2]
[380373277,1755712159191,-1200.0,0.00021999,2]
[380373278,1755712159211,-1200.0,0.00021999,2]
[380373279,1755712159231,-1033.44945568,0.00022,2]
[380373280,1755712159253,-2033.4589264,0.00022,2]
[380373281,1755712159271,-500.0,0.00022073,2]
[380373282,1755712159290,-500.0,0.00022073,2]
[380373283,1755712159310,-5069.69817325,0.00022094,2]
[380373284,1755712159337,-4848.14595454,0.00022094,2]
[380373285,1755712167091,-15348.446219,0.00022094,2]
[380373286,1755712203119,188.485164,0.00018551,2]
[380373287,1755712203143,156.8,0.00018551,2]
[380373288,1755712203176,994.714836,0.00018551,2]
[380373316,1755712232390,-203.75951921,0.00022068,2]
[380373317,1755712232400,-271.64496179,0.00022073,2]
[380373318,1755712232409,-76.9317657,0.00022093,2]
[380373319,1755712232441,-223.0682343,0.00022093,2]
[380373320,1755712232451,-277.5267757,0.00022093,2]
[380373327,1755712238284,-22.4732243,0.00022093,2]
[380373328,1755712238294,-300.0,0.00022093,2]
[380373329,1755712238305,-206.0,0.00022093,2]
[380373330,1755712238315,-300.0,0.00022093,2]
[380373333,1755712238454,-396.4295996,0.00022099,2]
[380373334,1755712238465,-500.0,0.00022099,2]
[380373335,1755712238474,-196.0927309,0.00022099,2]
[380373336,1755712238484,-500.0,0.00022099,2]
[380373337,1755712238493,-403.73573837,0.00022099,2]
[380373338,1755712238503,-288.45768082,0.00022099,2]
[380373339,1755712238512,-152.31489871,0.00022099,2]
[380373340,1755712238521,-500.0,0.00022099,2]
[380373341,1755712238531,-478.02575939,0.00022099,2]
[380373342,1755712238540,-6859.50321206,0.000221,2]
[380373343,1755712238556,-40382.65619377,0.000221,2]
[380373346,1755712240169,-500.0,0.000221,2]
[380373347,1755712240180,-5261.30239068,0.000221,2]
[380373348,1755712240191,-316996.53820349,0.000221,2]
[380373349,1755712240200,-918.27,0.000221,7]
[380373350,1755712240209,-8159.75,0.000221,7]
[380373351,1755712240218,-375.94359665,0.000221,7]
[380373352,1755712240227,-4875.55,0.000221,7]
[380373353,1755712240236,-1000.0,0.00022289,2]
[380373354,1755712240245,-1000.0,0.00022289,2]
[380373355,1755712240254,-1000.0,0.00022289,2]
[380373356,1755712240264,-1000.0,0.00022289,2]
[380373357,1755712240273,-1000.0,0.00022289,2]
[380373358,1755712240283,-1000.0,0.00022289,2]
[380373359,1755712240292,-1000.0,0.00022289,2]
[380373360,1755712240302,-1000.0,0.00022289,2]
[380373361,1755712240311,-1000.0,0.00022289,2]
[380373362,1755712240320,-1000.0,0.00022299,2]
[380373363,1755712240329,-215.82729805,0.00022455,2]
[380373364,1755712240338,-160.0,0.00022456,2]
[380373365,1755712240347,-375.94359665,0.00022456,2]
[380373366,1755712240356,-844.05985274,0.00022456,2]
[380373367,1755712240365,-232.24568399,0.00022456,2]
[380373368,1755712240375,-300.0,0.00022541,20]
[380373369,1755712240387,-300.0,0.00022541,20]
[380373370,1755712240397,-422.42807896,0.00022706,2]
[380373371,1755712240406,-1219.67720548,0.00022731,2]
[380373372,1755712240415,-1000.0,0.0002282,2]
[380373373,1755712240424,-2033.45892638,0.00022975,2]
[380373374,1755712240434,-160.0,0.00023,2]
[380373375,1755712240443,-168.0,0.00023421,2]
[380373376,1755712240452,-1219.67720548,0.00023466,2]
[380373377,1755712240461,-1000.0,0.0002352,2]
[380373378,1755712240470,-500.0,0.0002352,2]
[380373379,1755712240479,-1000.0,0.00023617,2]
[380373380,1755712240488,-151.0,0.00023618,2]
[380373381,1755712240497,-151.0,0.00023618,2]
[380373382,1755712240506,-151.0,0.00023618,2]
[380373383,1755712240515,-2384.89026962,0.00023618,2]
[380373384,1755712240524,-151.0,0.00023618,2]
[380373385,1755712240534,-2183.31810187,0.00023618,2]
[380373386,1755712240543,-422.42807896,0.00023642,2]
[380373387,1755712240552,-298.00612635,0.00023643,2]
[380373388,1755712240561,-2264.10087164,0.00023673,2]
[380373389,1755712240570,-500.0,0.000237,2]
[380373390,1755712240579,-500.0,0.000237,2]
[380373391,1755712240587,-500.0,0.000237,2]
[380373392,1755712240596,-2347.87260389,0.00023728,2]
[380373393,1755712240606,-160.0,0.00023775,2]
[380373394,1755712240615,-820.18300183,0.00023783,2]
[380373395,1755712240623,-500.0,0.00023794,2]
[380373396,1755712240633,-500.0,0.000238,2]
[380373397,1755712240641,-500.43512046,0.000238,2]
[380373398,1755712240651,-500.0,0.000238,2]
[380373399,1755712240660,-500.0,0.000238,2]
[380373400,1755712240669,-500.0,0.000238,2]
[380373401,1755712240678,-4875.55,0.000239,7]
[380373402,1755712240687,-27493.39,0.000239,4]
[380373403,1755712240696,-2033.45892638,0.0002395,2]
[380373404,1755712240706,-844.05985274,0.00024,7]
[380373405,1755712240714,-232.24568399,0.00024,7]
[380373406,1755712240723,-420.0,0.00024005,2]
[380373407,1755712240732,-168.0,0.0002401,2]
[380373408,1755712240741,-500.0,0.00024068,2]
[380373409,1755712240750,-168.0,0.00024087,2]
[380373410,1755712240759,-1219.67720548,0.00024201,2]
[380373411,1755712240768,-1000.0,0.00024248,2]
[380373412,1755712240777,-1000.0,0.00024248,2]
[380373413,1755712240786,-1000.0,0.00024248,2]
[380373414,1755712240795,-260.0,0.00024323,2]
[380373415,1755712240804,-500.0,0.00024342,2]
[380373416,1755712240813,-1000.0,0.00024348,2]
[380373417,1755712240822,-168.0,0.00024438,2]
[380373418,1755712240832,-973.0,0.0002451,2]
[380373419,1755712240840,-637.0,0.0002451,2]
[380373420,1755712240849,-2154.0,0.0002451,2]
[380373421,1755712240858,-159.73,0.0002451,2]
[380373422,1755712240867,-408.0,0.0002451,2]
[380373423,1755712240876,-422.42807896,0.00024577,2]
[380373424,1755712240885,-151.0,0.000246,10]
[380373425,1755712240894,-151.0,0.000246,5]
[380373426,1755712240903,-5492.29492984,0.0002463,7]
[380373427,1755712240912,-1112.2295198,0.00024796,2]
[380373428,1755712240921,-696.5037321,0.00024796,2]
[380373429,1755712240930,-39600.4772126,0.000248,2]
[380373430,1755712240939,-360.0,0.00024871,2]
[380373431,1755712240948,-500.0,0.00024873,2]
[380373432,1755712240957,-500.0,0.00024873,2]
[380373433,1755712240966,-500.0,0.00024873,2]
[380373434,1755712240975,-500.0,0.00024873,2]
[380373435,1755712240983,-500.0,0.00024873,2]
[380373436,1755712240992,-597.05718573,0.00024873,2]
[380373437,1755712241002,-501.70449007,0.00024873,2]
[380373438,1755712241011,-500.0,0.00024873,2]
[380373439,1755712241020,-500.67768814,0.00024873,2]
[380373440,1755712241029,-1000.0,0.00024873,2]
[380373441,1755712241039,-150.0,0.00024873,2]
[380373442,1755712241048,-4400.05302362,0.00024889,2]
[380373443,1755712241058,-44000.5302362,0.0002489,2]
[380373444,1755712241067,-1500.0,0.00024896,2]
[380373445,1755712241077,-500.0,0.00024899,2]
[380373446,1755712241086,-1299.39408198,0.00024899,2]
[380373447,1755712241095,-1299.39408198,0.00024899,2]
[380373449,1755712241104,-266.61702079,0.00024899,2]
[380373451,1755712241114,-1299.39408198,0.00024899,2]
[380373452,1755712241123,-1299.39408198,0.00024899,2]
[380373454,1755712241218,-1299.39408198,0.00024899,2]
[380373456,1755712241230,-1299.39408198,0.00024899,2]
[380373459,1755712241239,-500.0,0.00024899,2]
[380373461,1755712241248,-1299.39408198,0.00024899,2]
[380373463,1755712241257,-1299.39408198,0.00024899,2]
[380373465,1755712241265,-1299.39408198,0.00024899,2]
[380373466,1755712241274,-1299.39408198,0.00024899,2]
[380373468,1755712241283,-1299.39408198,0.00024899,2]
[380373470,1755712241292,-1299.39408198,0.00024899,2]
[380373472,1755712241302,-1299.39408198,0.00024899,2]
[380373474,1755712241311,-1299.39408198,0.00024899,2]
[380373476,1755712241320,-1299.39408198,0.00024899,2]
[380373477,1755712241329,-1299.39408198,0.00024899,2]
[380373479,1755712241338,-1299.39408198,0.00024899,2]
[380373481,1755712241347,-1299.39408198,0.00024899,2]
[380373482,1755712241356,-1299.39408198,0.00024899,2]
[380373483,1755712241365,-1299.39408198,0.00024899,2]
[380373484,1755712241374,-1386.02035411,0.00024899,2]
[380373485,1755712241384,-1386.02035411,0.00024899,2]
[380373486,1755712241398,-1386.02035411,0.00024899,2]
[380373487,1755712241406,-1386.02035411,0.00024899,2]
[380373488,1755712241415,-1386.02035411,0.00024899,2]
[380373489,1755712241424,-1386.02035411,0.00024899,2]
[380373490,1755712241434,-1386.02035411,0.00024899,2]
[380373491,1755712241443,-1386.02035411,0.00024899,2]
[380373492,1755712241453,-1386.02035411,0.00024899,2]
[380373493,1755712241462,-21724.22,0.000249,2]
[380373494,1755712241471,-192350.466026,0.000249,2]
[380373495,1755712241479,-2033.45892638,0.00024925,2]
[380373496,1755712241488,-1219.67720548,0.00024936,2]
[380373497,1755712241497,-151.0,0.00024987,2]
[380373498,1755712241506,-918.27,0.000251,7]
[380373499,1755712241515,-8159.75,0.000251,7]
[380373500,1755712241524,-241.0,0.0002511,2]
[380373501,1755712241533,-241.0,0.00025199,2]
[380373502,1755712241543,-4146.79194132,0.00025219,2]
[380373503,1755712241553,-388.6490375,0.00025245,2]
[380373504,1755712241563,-581.0009137,0.00025245,2]
[380373505,1755712241572,-160.8718701,0.00025245,2]
[380373506,1755712241581,-241.0,0.00025274,2]
[380373507,1755712241592,-4875.55,0.000253,7]
[380373508,1755712241601,-460.0,0.00025419,2]
[380373509,1755712241611,-500.0,0.00025421,2]
[380373510,1755712241620,-1003.66116912,0.00025421,2]
[380373511,1755712241629,-1000.0,0.00025421,2]
[380373512,1755712241639,-500.0,0.00025421,2]
[380373513,1755712241648,-1019.39024622,0.00025421,2]
[380373514,1755712241658,-250.0,0.00025421,2]
[380373515,1755712241667,-2000.0,0.00025444,2]
[380373516,1755712241676,-157.081155,0.0002548,15]
[380373517,1755712241685,-158.985551,0.0002548,15]
[380373518,1755712241694,-422.42807896,0.00025513,3]
[380373519,1755712241703,-2200.0,0.00025521,2]
[380373520,1755712241711,-817.648,0.00025521,2]
[380373521,1755712241720,-306.0,0.00025589,2]
[380373522,1755712241729,-160.8718701,0.00025589,2]
[380373523,1755712241738,-404.9231166,0.00025589,2]
[380373524,1755712241747,-160.8718701,0.00025589,2]
[380373525,1755712241755,-293.9452039,0.00025589,2]
[380373526,1755712241764,-293.9452039,0.00025589,2]
[380373527,1755712241773,-160.8718701,0.00025589,2]
[380373528,1755712241783,-160.8718701,0.00025589,2]
[380373529,1755712241792,-293.9452039,0.00025589,2]
[380373530,1755712241802,-160.8718701,0.00025589,2]
[380373531,1755712241810,-581.0009137,0.00025589,2]
[380373532,1755712241819,-1550.0,0.00025618,7]
[380373533,1755712241828,-241.0,0.00025629,2]
[380373534,1755712241837,-1219.67720548,0.00025671,2]
[380373535,1755712241846,-151.0,0.00025803,2]
[380373536,1755712241855,-218.11712398,0.00025803,2]
[380373537,1755712241864,-151.0,0.00025803,2]
[380373538,1755712241873,-151.0,0.00025803,2]
[380373539,1755712241882,-226.8933604,0.00025803,2]
[380373540,1755712241892,-151.58071857,0.00025803,2]
[380373541,1755712241901,-151.0,0.00025803,2]
[380373542,1755712241910,-151.93370689,0.00025803,2]
[380373543,1755712241919,-500.0,0.00025803,2]
[380373544,1755712241928,-500.0,0.00025803,2]
[380373545,1755712241937,-151.0,0.00025803,2]
[380373546,1755712241947,-151.0,0.00025803,2]
[380373547,1755712241957,-151.0,0.00025803,2]
[380373548,1755712241966,-151.0,0.00025803,2]
[380373549,1755712241976,-151.0,0.00025803,2]
[380373550,1755712241985,-151.0,0.00025803,2]
[380373551,1755712241994,-151.0,0.00025803,2]
[380373552,1755712242003,-151.13703646,0.00025803,2]
[380373553,1755712242012,-180.67183153,0.00025804,2]
[380373554,1755712242022,-481.97188186,0.00025804,2]
[380373555,1755712242031,-1925.95963992,0.00025804,2]
[380373556,1755712242040,-241.0,0.00025812,7]
[380373557,1755712242049,-200.0,0.0002584,14]
[380373558,1755712242064,-997.01428423,0.00025876,2]
[380373559,1755712242073,-241.0,0.00025883,2]
[380373560,1755712242083,-2033.45892638,0.000259,2]
[380373561,1755712242092,-560.0,0.00025967,2]
[380373562,1755712242102,-997.01428423,0.00025976,2]
[380373563,1755712242115,-2500.0,0.00025992,2]
[380373564,1755712242135,-179280.6718057,0.00026,15]
[380373565,1755712242155,-1762.0,0.00026,3]
[380373566,1755712242177,-1762.0,0.00026,3]
[380373567,1755712242196,-1762.0,0.00026,3]
[380373568,1755712242216,-2000.0,0.00026,2]
[380373569,1755712242236,-151.0,0.00026,15]
[380373570,1755712242256,-151.37947602,0.00026,15]
[380373571,1755712242275,-1038.98,0.00026,30]
[380373572,1755712242293,-154.58960332,0.00026,3]
[380373573,1755712242315,-844.05985274,0.00026,3]
[380373574,1755712242335,-1558.215259,0.00026,2]
[380373575,1755712242353,-232.24568399,0.00026,3]
[380373576,1755712242372,-375.94359665,0.00026,3]
[380373577,1755712242391,-500.0,0.00026,5]
[380373578,1755712242411,-500.0,0.00026,20]
[380373579,1755712242429,-160.0,0.00026,3]
[380373580,1755712242449,-300.0,0.00026,2]
[380373581,1755712242468,-1013.23298153,0.00026,2]
[380373582,1755712242488,-759.0,0.00026018,2]
[380373583,1755712242507,-199.0,0.0002603,30]
[380373584,1755712242527,-2068.17,0.00026046,2]
[380373585,1755712242547,-160.8718701,0.00026067,2]
[380373586,1755712242571,-581.0009137,0.00026067,2]
[380373587,1755712242590,-581.0009137,0.00026067,2]
[380373588,1755712242611,-581.0009137,0.00026067,2]
[380373589,1755712242631,-581.0009137,0.00026067,2]
[380373590,1755712242651,-581.0009137,0.00026067,2]
[380373591,1755712242672,-581.0009137,0.00026067,2]
[380373592,1755712242693,-228.3227365,0.00026067,2]
[380373593,1755712242714,-150.81405309,0.00026073,2]
[380373594,1755712242734,-997.01428423,0.00026076,2]
[380373595,1755712242755,-151.0,0.00026077,2]
[380373596,1755712242772,-151.0,0.00026077,2]
[380373597,1755712242781,-151.0,0.00026077,2]
[380373598,1755712242790,-500.0,0.00026077,2]
[380373600,1755712242800,-500.0,0.00026077,2]
[380373601,1755712242813,-151.0,0.00026077,2]
[380373602,1755712242822,-151.0,0.00026077,2]
[380373603,1755712242831,-151.0,0.00026077,2]
[380373604,1755712242839,-587.0,0.00026083,2]
[380373605,1755712242848,-160.0,0.000261,7]
[380373607,1755712242858,-1002.06,0.000261,7]
[380373609,1755712242867,-21724.22,0.000261,2]
[380373611,1755712242876,-1038.98,0.0002613,30]
[380373613,1755712242885,-5029.55861862,0.00026137,8]
[380373615,1755712242895,-191.29613329,0.0002616,2]
[380373617,1755712242904,-997.01428423,0.00026176,2]
[380373619,1755712242913,-753.0,0.00026177,2]
[380373622,1755712242922,-753.0,0.00026192,2]
[380373625,1755712242932,-216.9170744,0.000262,10]
[380373627,1755712242941,-8146.0,0.00026242,10]
[380373629,1755712242950,-753.0,0.00026255,2]
[380373631,1755712242959,-1038.98,0.0002626,30]
[380373633,1755712242968,-386.7798227,0.00026274,2]
[380373635,1755712242977,-386.7798227,0.00026274,2]
[380373637,1755712242986,-386.7798227,0.00026274,2]
[380373639,1755712242995,-386.7798227,0.00026274,2]
[380373641,1755712243004,-386.7798227,0.00026274,2]
[380373643,1755712243013,-997.01428423,0.00026276,2]
[380373644,1755712243025,-12687.94051737,0.000263,10]
[380373646,1755712243034,-918.27,0.000263,7]
[380373648,1755712243043,-8159.75,0.000263,7]
[380373650,1755712243054,-151.0,0.000263,7]
[380373651,1755712243063,-151.565054,0.000263,7]
[380373652,1755712243072,-151.0,0.000263,7]
[380373653,1755712243081,-151.0,0.000263,7]
[380373654,1755712243090,-151.0,0.000263,7]
[380373655,1755712243100,-153.130788,0.000263,7]
[380373656,1755712243109,-151.0,0.000263,7]
[380373657,1755712243118,-154.843875,0.000263,7]
[380373659,1755712243128,-182.77662,0.000263,7]
[380373660,1755712243136,-200.627726,0.000263,7]
[380373661,1755712243146,-151.0,0.000263,7]
[380373662,1755712243155,-151.0,0.000263,7]
[380373663,1755712243164,-844.05985274,0.000263,10]
[380373664,1755712243173,-844.05985274,0.000263,7]
[380373665,1755712243182,-232.24568399,0.000263,10]
[380373666,1755712243191,-152.62283,0.000263,7]
[380373667,1755712243201,-151.0,0.000263,7]
[380373668,1755712243210,-417.15472785,0.000263,10]
[380373669,1755712243219,-151.0,0.00026339,7]
[380373670,1755712243229,-151.0,0.00026339,7]
[380373671,1755712243238,-152.315725,0.00026339,7]